Cogmind - Beta 11.1 @@@ ROGUE MODE // 2022.09.02 @ 19:26:59 Player: NoobOne Result: Destroyed by G-34 Mercenary with Small Laser Performance ------------- Evolutions (1) 500 Regions Visited (2) 400 Robots Destroyed (27) 135 Value Destroyed (564) 564 Prototype IDs (0) 0 Alien Tech Used (0) 0 Bonus (0) 0 TOTAL SCORE: 1599 Bonus ------- None Cogmind --------- Core Integrity 0/400 Matter 194/300 Energy 465/465 System Corruption 2% Temperature Cool (6) Movement Walking (190) Ox1 Location -9/Materials Parts ------- > --- POWER (1) -------- Improved Ion Engine > --- PROPULSION (2) --- Improved Aluminum Leg Improved Aluminum Leg > --- UTILITY (4) ------ Large Storage Unit Large Battery Tractor Beam > --- WEAPON (2) ------- (None) > --- INVENTORY (15) --- Ion Engine Heavy Ion Engine Light Treads Light Treads Light Treads Light Treads Aluminum Leg Aluminum Leg Heat Sink Heat Sink Peak State ------------ > --- POWER ------------ Light Ion Engine > --- PROPULSION ------- Light Treads Light Treads > --- UTILITY ---------- Heat Sink Large Storage Unit Large Battery Light Armor Plating > --- WEAPON ----------- Heavy Assault Rifle Heavy Assault Rifle > --- INVENTORY -------- Ion Engine Improved Ion Engine Heavy Ion Engine Light Treads Light Treads Light Treads Light Treads Light Treads Aluminum Leg Aluminum Leg Improved Aluminum Leg Improved Aluminum Leg Heat Sink Heat Sink Grenade Launcher [Rating: 13] Favorites ----------- Power Light Ion Engine Engine Light Ion Engine Propulsion Light Treads Treads Light Treads Leg Improved Aluminum Leg Utility Large Storage Unit Device Heat Sink Storage Large Storage Unit Protection Light Armor Plating Weapon Small Laser Energy Gun Small Laser Ballistic Gun Heavy Assault Rifle Launcher Grenade Launcher Build | -11 -10 -9 ------- Run | Scr Mat Mat Slots Evolved 2 | . . 2 Power . | . . . Propulsion . | . . . Utility 2 | . . 2 Weapon . | . . . Parts Attached 31 | 3 6 22 Power 4 | 1 1 2 Engine 4 | 1 1 2 Core . | . . . Reactor . | . . . Propulsion 7 | . 2 5 Treads 5 | . 2 3 Leg 2 | . . 2 Wheel . | . . . Hover . | . . . Flight . | . . . Utility 11 | . 3 8 Device 6 | . 2 4 Storage 2 | . 1 1 Processor . | . . . Hackware . | . . . Protection 3 | . . 3 Artifact . | . . . Weapon 9 | 2 . 7 Energy Gun 3 | 2 . 1 Energy Cannon . | . . . Ballistic Gun 5 | . . 5 Ballistic Cannon . | . . . Launcher 1 | . . 1 Special Weapon . | . . . Impact Weapon . | . . . Slashing Weapon . | . . . Piercing Weapon . | . . . Special Melee Weapon . | . . . Unidentified Prototypes . | . . . Parts Lost 15 | . 1 14 Power 3 | . 1 2 Propulsion 3 | . . 3 Utility 4 | . . 4 Weapon 5 | . . 5 Highest Loss Streak 9 | . 1 9 To Critical Strikes . | . . . Average Slot Usage (%) 76 | . 62 82 Engine 10 | . 13 10 Treads 15 | . 8 18 Leg 1 | . . 1 Device 11 | . 10 11 Storage 11 | . 1 15 Protection 5 | . . 7 Energy Gun 11 | . 28 4 Ballistic Gun 8 | . . 12 Naked Turns . | . . . Heaviest Build 36 | 5 27 36 Greatest Support 40 | 3 40 40 Greatest Overweight (x) 7 | 1 1 7 Average Overweight (x) . | . . . Largest Inventory Capacity 15 | 5 15 15 Average Capacity 12 | 5 6 15 Most Carried 15 | 3 6 15 Average Carried 8 | 2 4 10 Final Capacity 15 | 5 15 15 Final Carried 10 | 3 6 10 Class Distribution -------------------- 88% | Mutant 11% | Scavenger-Mutant Dominant Class ---------------- Mutant | -10/Materials Mutant | -9/Materials Resources | -11 -10 -9 ----------- Run | Scr Mat Mat Matter Collected 603 | 176 64 363 Remotely . | . . . Salvage Created 712 | . 202 510 Parts 54 | . 20 34 Haulers Intercepted . | . . . Recyclers Shooed 1 | . . 1 Parts Field Recycled . | . . . Retrieved Matter . | . . . Parts Self-Destructed . | . . . Prevented . | . . . Kills | -11 -10 -9 ------- Run | Scr Mat Mat Combat Hostiles Destroyed 23 | . 8 15 Guns 19 | . 8 11 AOE 4 | . . 4 Classes Destroyed 6 | . 3 3 Worker 2 | . . 2 Recycler 1 | . . 1 Watcher 1 | . 1 . Swarmer 12 | . 6 6 Grunt 8 | . 2 6 Sentry 3 | . . 3 Best Kill Streak 9 | . 3 9 Combat Bots Only 7 | . 3 7 Max Kills in Single Turn 2 | . 1 2 Gunslinging . | . . . Exploded 2 | . . 2 Melee . | . . . Uniques/NPCs Destroyed . | . . . Combat | -11 -10 -9 -------- Run | Scr Mat Mat Damage Taken 2079 | . 174 1905 Core 447 | . 43 404 Absorbed by Shields 28 | . . 28 Regen/Repaired (Parts) 76 | . . 76 Core Remaining (%) 91 | 100 82 . Volleys Fired 72 | . 18 54 Largest 2 | . 2 2 Hottest 80 | . 80 80 Shots Fired 126 | . 36 90 Gun 122 | . 36 86 Cannon . | . . . Launcher 4 | . . 4 Special . | . . . Kinetic 78 | . . 78 Thermal 40 | . 36 4 Explosive 4 | . . 4 Electromagnetic 4 | . . 4 Robot Hit Streak 19 | . 8 19 Robot Miss Streak 3 | . 3 3 Penetration Max . | . . . Secondary Targets 2 | . 1 1 Max Gunslinging Chain 1 | . 1 1 Shots Hit Robots 91 | . 21 70 Core Hits 39 | . 11 28 Critical Kills . | . . . Critical Parts Destroyed 1 | . . 1 Critical Strikes 1 | . . 1 Destroy 1 | . . 1 Melee Attacks . | . . . Impact . | . . . Slashing . | . . . Piercing . | . . . Sneak Attacks . | . . . Combat Hostiles . | . . . Follow-up Attacks . | . . . Damage Inflicted 1627 | . 253 1374 Guns 1257 | . 253 1004 Cannons . | . . . Explosions 365 | . . 365 Melee . | . . . Ramming 5 | . . 5 Kinetic 931 | . . 931 Thermal 293 | . 253 40 Explosive 365 | . . 365 Electromagnetic 33 | . . 33 Impact . | . . . Slashing . | . . . Piercing . | . . . Highest Corruption 2 | . 1 2 Average Corruption 1 | . 1 2 Corruption Purged . | . . . Corruption Blocked . | . . . Effects 5 | . . 5 Message Errors 1 | . . 1 Heat Flow Errors 1 | . . 1 Parts Rejected 1 | . . 1 Data Loss (minor) 2 | . . 2 Overload Shots . | . . . Overflow Damage 10 | . . 10 Projectiles . | . . . Explosions 10 | . . 10 Melee . | . . . Knockbacks . | . . . Impact . | . . . Kinetic . | . . . Secondary . | . . . Self-Inflicted Damage . | . . . Shots . | . . . Rammed 1 | . . 1 Targets Rammed 1 | . . 1 Kicked . | . . . Crushed . | . . . Highest Temperature 220 | . 108 220 Average Temperature 41 | . 47 35 Received Heat Transfer 926 | . 18 908 Siege Activations . | . . . Robots Corrupted . | . . . Combat Hostiles . | . . . Parts Fried . | . . . Impact Corruptions . | . . . Robots Melted . | . . . Combat Hostiles . | . . . Parts Melted 1 | . 1 . Heat Transferred 675 | . 575 100 Parts Sabotaged . | . . . Parts Stolen . | . . . Parts Stripped . | . . . Power Chain Reactions . | . . . Missiles Intercepted . | . . . Alert | -11 -10 -9 ------- Run | Scr Mat Mat Peak Influence 337 | . 236 337 Initial 99 | . . 99 Average 126 | . 133 130 Maximum Alert Level 1 | . 1 1 Low Security (%) 76 | 100 62 81 Level 1 23 | . 37 18 Level 2 . | . . . Level 3 . | . . . Level 4 . | . . . Level 5 . | . . . High Security . | . . . Max Security . | . . . Squads Dispatched 3 | . 2 1 Investigation 2 | . 1 1 Extermination . | . . . Reinforcement 1 | . 1 . Assault . | . . . Garrison . | . . . Intercept . | . . . Searches Triggered . | . . . Construction Impeded . | . . . Haulers Reinforced . | . . . Active Scanning Responses . | . . . Cargo Convoy Interrupts . | . . . Stealth | -11 -10 -9 --------- Run | Scr Mat Mat Distress Signals 2 | . 1 1 Communications Jammed . | . . . Distress Signals . | . . . Times Spotted 39 | . 14 25 Peak Tracking Total 11 | . 5 11 Tactical Retreats 4 | . 2 2 Traps | -11 -10 -9 ------- Run | Scr Mat Mat Traps Triggered 2 | . 1 1 Indirectly . | . . . Trap Hack Attempts . | . . . Triggered . | . . . Disarmed . | . . . Reprogrammed . | . . . Reused . | . . . Traps Extracted . | . . . Installed . | . . . Triggered . | . . . Machines | -11 -10 -9 ---------- Run | Scr Mat Mat Machines Disabled . | . . . Max in Single Turn . | . . . Machines Sabotaged . | . . . Garrisons Compromised . | . . . Overloaded Fab Kills . | . . . Hacking | -11 -10 -9 --------- Run | Scr Mat Mat Machines Accessed 4 | . 1 3 Terminals 2 | . 1 1 Fabricators . | . . . Repair Stations 1 | . . 1 Recycling Units . | . . . Scanalyzers 1 | . . 1 Garrison Access . | . . . Total Hacks 19 | . 4 15 Successful 17 | . 4 13 Failed 2 | . . 2 Catastrophic . | . . . Database Lockouts . | . . . Manual . | . . . Terminals 7 | . 4 3 Fabricators . | . . . Repair Stations 6 | . . 6 Recycling Units . | . . . Scanalyzers 6 | . . 6 Garrison Access . | . . . Terminal Hacks 5 | . 4 1 Emergency Access Points 1 | . 1 . Alert Level 2 | . 1 1 Dispatch Records 1 | . 1 . Maintenance Status 1 | . 1 . Fabricator Hacks . | . . . Repair Station Hacks 6 | . . 6 Scan Component 3 | . . 3 Repair 3 | . . 3 Recycling Unit Hacks . | . . . Scanalyzer 6 | . . 6 Insert Component 3 | . . 3 Analyze 3 | . . 3 Garrison Access Hacks . | . . . Unauthorized Hacks . | . . . Terminals . | . . . Fabricators . | . . . Repair Stations . | . . . Recycling Units . | . . . Scanalyzers . | . . . Garrison Access . | . . . Data Cores Recovered . | . . . Used . | . . . Hacking Detections 3 | . 1 2 Full Trace Events 3 | . 1 2 Feedback Events . | . . . Feedback Blocked . | . . . Robot Schematics Acquired . | . . . Robots Built . | . . . Authchips . | . . . Time . | . . . Total Robot Build Rating . | . . . Part Schematics Acquired 3 | . . 3 Parts Built . | . . . Authchips . | . . . Time . | . . . Total Part Build Rating . | . . . Parts Repaired 3 | . . 3 Time 90 | . . 90 Parts Recycled . | . . . Recycled Matter . | . . . Retrieved Matter . | . . . Retrieved Components . | . . . Parts Scanalyzed 3 | . . 3 Part Schematics Acquired 3 | . . 3 Parts Damaged . | . . . Bothacking | -11 -10 -9 ------------ Run | Scr Mat Mat Used RIF Installer . | . . . Robots Hacked . | . . . Non-combat . | . . . Combat . | . . . Robot Hacks Applied . | . . . Relay Couplers Released . | . . . Fabnet Peak Effective % . | . . . Robots Rewired . | . . . Allies Hacked . | . . . Hacks Repelled . | . . . Allies | -11 -10 -9 -------- Run | Scr Mat Mat Total Allies . | . . . Largest Group . | . . . Highest-Rated Group . | . . . Highest-Rated Ally . | . . . Total Orders . | . . . Ally Attacks . | . . . Total Damage . | . . . Kills . | . . . Allies Corrupted . | . . . Allies Melted . | . . . Intel | -11 -10 -9 ------- Run | Scr Mat Mat Robot Analysis Total . | . . . Derelict Logs Recovered . | . . . Drone Launches . | . . . Drone Recoveries . | . . . Exploration | -11 -10 -9 ------------- Run | Scr Mat Mat Turns Passed 1176 | 43 319 814 Spaces Moved 596 | 42 216 338 Core 209 | 42 161 6 Treads 354 | . 55 299 Legs 33 | . . 33 Wheels . | . . . Hover . | . . . Flight . | . . . Fastest Speed 50 | 50 50 160 Average Speed 143 | 82 114 169 Slowest Speed 400 | 100 160 400 Overloaded Moves . | . . . Propulsion Burnouts . | . . . Robots Hopped . | . . . Cave-ins Triggered . | . . . Exploration Rate (%) 22 | 3 40 25 Regions Visited 2 Branch Regions . Pre-discovered Areas . | . . . Known Exits Taken . | . . . Unknown Exits Taken 2 | 1 1 . Scrap Searched . | . . . Spaces Dug . | . . . Terrain Destroyed 14 | . . 14 Melee . | . . . Projectile . | . . . AOE 14 | . . 14 Terrain Rammed . | . . . Walls Destroyed . | . . . Machines Disabled . | . . . Actions | -11 -10 -9 --------- Run | Scr Mat Mat Total 793 | 50 253 490 Wait 45 | . . 45 Move 594 | 41 215 338 Hop . | . . . Pick Up 42 | 6 11 25 Fast Attach . | . . . Attach 30 | 3 6 21 Detach 1 | . . 1 Swap 1 | . . 1 Drop 7 | . 3 4 Fire 72 | . 18 54 Melee . | . . . Ram . | . . . Kick . | . . . Crush 1 | . . 1 Escape Stasis . | . . . Rewire . | . . . Trap . | . . . Miscellaneous . | . . . Route ------- -11/Scrapyard -10/Materials -9/Materials History --------- Turn | Location | Event 4 | -11/Scrapyard | Discovered new exit (range 16) 44 | -11/Scrapyard | Entered Materials 310 | -10/Materials | Discovered new exit (range 10) 314 | -10/Materials | Build established: Mutant 363 | -10/Materials | Entered another Materials area 363 | -9/Materials | Evolved 2 slots: Utility x2 629 | -9/Materials | Lost 5 parts (1p1n2u1w) 681 | -9/Materials | Repaired Lgt. Armor Plating 681 | -9/Materials | Repaired Hvy. Assault Rifle 713 | -9/Materials | Repaired Hvy. Assault Rifle 1057 | -9/Materials | Core integrity fell below 50% 1083 | -9/Materials | Destroyed 7 combat bots 1105 | -9/Materials | Core integrity fell below 20% 1139 | -9/Materials | Lost 9 parts (1p2n2u4w) 1177 | -9/Materials | Destroyed by G-34 Mercenary with Small Laser Last Messages --------------- K-01 Serf collects debris. U-05 Engineer destroyed. U-05 Engineer lays Concrete. Lgt. Treads destroyed. U-05 Engineer lays Concrete. K-01 Serf collects debris. U-05 Engineer builds a Wall. U-05 Engineer lays Concrete. K-01 Serf collects debris. U-05 Engineer lays Concrete. Heat Sink destroyed. U-05 Engineer lays Concrete. U-05 Engineer builds a Wall. U-05 Engineer lays Concrete. U-05 Engineer builds a Door. U-05 Engineer lays Concrete. U-05 Engineer builds a Wall. U-05 Engineer builds a Door. System corrupted: Component data lost. Acquired Tractor Beam. Map ----- +----------------------------------------------------+ | ????????????????????????????????# ## | | ????????????????????????????????# """ ## | | ????????????????????????????????# """ ## | | ????????????????????????????????# """ ## """ """ | | ????????????????????????????????# #? """ """* | | ????????????????????????????????# """ ## """ """ | | ????????????????????????????????# """ ## | | ????????????????????????????????# """ ########### | | ??????????????????????########### ## # | | ??????????????????##### T [ # ## # | | ????????????## #### # # ## ! / | | ????????????+ [ # """ ####+#### # | | ????????????# # """ !!= #?# = + # | | ????????????# + """ ! ### ########### | | ??????? # ! + ########### | | ?????? # ### # # | | ??????? # #?# # # | | ???????#+######+#################?# # """""""!# | | ??????????????????????????????????# # """"""" + | | ??????????????????????????????????# # """"""" # | | ??????????????????????????????????# # """"""" # | | ??????????????????????????????????# # """"""" # | | ??????????????????????????????????# # # | | ????????????????????????########### ########### | | ????????????????????????#] # #?????????# | | ????????????????????????#@ # #?????????# | | ????????????????????????# """ # #?????????# | | ????????????????????????# !! """ # #?????????# | | ????????????????????????# !! """ # #?????????# | | ????????????????????????# # #??????####+ | | ????????????????????????# # #??????# | | ??????????????????####??# gg # #??????# ! | | ????????????????### ###g####### ###+#### | | ????????????? #!""" | | ????????????? +%""" | | ????????????? # """ | | ??????????????##### ##### ##+##### # """ | | ??????????????????###+##????# # # # """ | | ????????????????????????????# # + ##### | | ????????????????????????????# # "" ##### #???? | | ????????????????????????????# # S"" #???# #???? | | ????????????????????????????# # "" #???# #???? | | ????????????????????????????# # #???# #???? | | ????????????????????????????# ########???# #???? | | ????????????????????????????# #####??????# #???? | | ????????????????????????????# #= ?????# #???? | | ????????????????????????????+ # ????# #???? | | ????????????????????????????# # ##?## #???? | | ????????????????????????????+ #? " #####/####? | | ????????????????????????????# ? """ #%! #? | +----------------------------------------------------+ Best States ------------- Heat Dissipation 38 Energy Generation 12 Energy Capacity 465 Matter Stores 300 Matter Capacity 300 Sight Range 16 Terrain Scan Density 10 ECM Strength 1 Armor Coverage 300 Evasion (%) 40 Recoil Reduction 2 Item Schematics ----------------- Grenade Launcher | -9/Materials | Scanalyzed Imp. Ion Engine | -9/Materials | Scanalyzed Aluminum Leg | -9/Materials | Scanalyzed Robot Schematics ------------------ None Fabricated ------------ Nothing Alien Tech Used ----------------- None Achievements -------------- None Challenges ------------ None Game ------ Seed FusionMissileScythe Manual? 0 Play Time 00:18:58 Cumulative 10.7 hours Start 2022.09.02 @ 19:08:03 End 2022.09.02 @ 19:26:59 Sessions 1 Manual Loads 0 Difficulty Rogue Special Mode None Game No. 11 Rogue 11 Adventurer 0 Explorer 0 Win Type - Total 0 Types 0/0/0/0/0/0/0/0/0 Lore% 3 Gallery% 14 Achievement% 12 Wizard Run 0 Options --------- ASCII 0 Keyboard 0 Movement Mouse Keybinds 0 Fullscreen 1 Font 18/TerminusBold Map View 76x50 Tactical HUD 0 Map Filters NONE Filters NONE Steam 0 RUN: 212aad1b-eeda-4eb4-b1a9-254d213fb2b8